[Event "Sardinia World Festival-A 2024"]
[Site "Orosei"]
[Date "2024.04.27"]
[Round "1.6"]
[White "Urbani, Gabriel"]
[Black "Lagarde, Maxime"]
[Result "0-1"]
[ECO "B69"]
[WhiteElo "2260"]
[BlackElo "2640"]
[Annotator "TA"]
[PlyCount "70"]
[EventDate "2024.04.26"]
[EventType "swiss"]
[EventCountry "ITA"]
[SourceTitle "playchess.com"]
[Source "ChessBase"]
[SourceQuality "1"]
[TimeControl "40/5400+30:1800+30"]

{[%evp 30,70,25,30,37,22,16,21,10,25,12,24,25,9,0,0,19,0,0,0,0,0,0,-67,0,-163,-86,-87,-89,-877,-865,-1058,-1054,-1348,-1425,-1254,-1050,-909,-1248,-1046,-947,-902,-883]} 1. e4 {[%emt 0:00:04]} c5 {[%emt 0:00:02]} 2. Nf3 {[%emt 0:00:14]} d6 {[%emt 0:00:05]} 3. d4 {[%emt 0:00:09]} cxd4 {[%emt 0:00:05]} 4. Nxd4 {[%emt 0:00:05]} Nf6 {[%emt 0:00:03]} 5. Nc3 {[%emt 0:00:41]} Nc6 {[%emt 0:00:06]} 6. Bg5 {[%emt 0:00:09]} e6 {[%emt 0:00:04]} 7. Qd2 {[%emt 0:00:11]} Be7 {[%emt 0:00:07]} 8. O-O-O {[%emt 0:00:18]} a6 {[%emt 0:00:05]} 9. f4 {[%emt 0:00:20]} Bd7 {[%emt 0:00:09]} 10. Nf3 {[%emt 0:01:29]} b5 {[%emt 0:00:28]} 11. Bxf6 {[%emt 0:01:31]} gxf6 {[%emt 0:00:13]} 12. f5 {[%emt 0:00:08]} Qb6 {[%emt 0:00:43]} 13. fxe6 {[%emt 0:02:09]} fxe6 {[%emt 0:00:15]} 14. Kb1 {[%emt 0:07:23]} O-O-O {[%emt 0:01:14]} 15. g3 {[%emt 0:06:44]} Kb8 {[%emt 0:00:50]} 16. Bh3 {[%emt 0:02:55]} Na5 {[%emt 0:06:41]} 17. Nd4 {[%emt 0:12:04]} b4 $1 {[%emt 0:00:16]} 18. Nce2 {[%emt 0:01:27][%cal Bc3e2,Be2c1,Bc1d3][%mdl 32]} e5 {[%emt 0:00:27][%csl LRd4,LRh3] The position is equal.} (18... Nc4 $6 19. Qd3 d5 20. exd5 $16) 19. Bxd7 {[%emt 0:04:55]} Rxd7 {[%emt 0:00:07]} 20. Nf5 {[%emt 0:00:35]} Nc4 {[%emt 0:00:31]} 21. Qd5 {[%emt 0:04:52]} Rc8 {[%emt 0:00:28]} 22. Nc1 {[%emt 0:03:51]} Bf8 {[%emt 0:06:19]} 23. Rhe1 {[%emt 0:08:11]} Rdc7 $40 {[%emt 0:03:35][%mdl 128] Black has some attack.} 24. Re2 {[%emt 0:00:31]} a5 {[%emt 0:01:10]} 25. Nd3 {[%emt 0:11:32]} a4 {[%emt 0:05:00]} 26. g4 {[%emt 0:05:18]} (26. Rde1 $11) 26... Ra7 {[%emt 0:07:45]} (26... b3 $15 27. cxb3 axb3) 27. h4 $2 {[%emt 0:03:07] [#]} (27. Rc1 $11 {and White stays safe.}) 27... Ra5 {[%emt 0:13:00]} (27... b3 $1 $19 {[%cal Rb3c2]} 28. cxb3 axb3) 28. Qe6 $17 {[%emt 0:07:46]} b3 {[%emt 0:01:12]} 29. cxb3 {[%emt 0:00:32][%mdl 8192] Loses the game.} (29. Qxf6 $2 {is the wrong capture.} bxc2+ 30. Kc1 cxd1=Q+ $19 (30... cxd1=R+ $2 31. Kxd1 Qg1+ 32. Ne1 $19)) (29. Rc1 $17 Qb5 (29... bxc2+ 30. Ka1 $15) 30. Ka1 (30. Qxf6 Na3+ 31. bxa3 bxc2+ 32. Ka1 Qxd3 $19)) 29... axb3 $19 {[%emt 0:00:11] Black is clearly winning.} 30. a3 {[%emt 0:05:27]} Qa6 {[%emt 0:02:17][%cal Oc4a3] Threatens to win with ...Nxa3+!} 31. Nc1 {[%emt 0:10:46] [#]} Nxa3+ $1 {[%emt 0:02:02][%mdl 512]} 32. bxa3 {[%emt 0:00:02]} Rxa3 {[%emt 0:00:05]} 33. Nxb3 {[%emt 0:00:39]} Qxe2 {[%emt 0:00:47]} 34. Rd2 {[%emt 0:00:09]} Qe1+ {[%emt 0:03:36]} 35. Kb2 {[%emt 0:00:01] [#]} Ra1 $3 {[%emt 0:00:24][%mdl 512] Weighted Error Value: White=0.76/Black=0.23 (precise) .  Loses game:     	White=2     	---        Mistake:       	White=1     	Black=2      OK:         	White=4     	Black=6      Best:        	White=1     	Black=1      Strong:       	---       	Black=1} 0-1

[Event "Sardinia World Festival-A 2024"]
[Site "Orosei"]
[Date "2024.04.27"]
[Round "1.7"]
[White "Murzin, Volodar"]
[Black "Orujov, Farid"]
[Result "1-0"]
[ECO "A14"]
[WhiteElo "2632"]
[BlackElo "2258"]
[Annotator "TA"]
[PlyCount "83"]
[EventDate "2024.04.26"]
[EventType "swiss"]
[EventCountry "ITA"]
[SourceTitle "playchess.com"]
[Source "ChessBase"]
[SourceQuality "1"]
[TimeControl "40/5400+30:1800+30"]

{[%evp 15,83,14,15,12,4,-2,19,7,24,0,0,0,6,0,6,0,0,0,0,0,14,0,0,0,30,-12,0,0,0,0,0,-11,0,0,0,16,20,0,42,60,60,34,172,177,151,145,147,148,145,153,248,248,331,331,330,330,329,329,331,312,360,275,329,327,410,397,521,488,698,691]} 1. Nf3 {[%emt 0:00:04]} Nf6 {[%emt 0:00:06]} 2. c4 {[%emt 0:00:06]} c6 {[%emt 0:00:20]} 3. g3 {[%emt 0:03:45]} d5 {[%emt 0:00:16]} 4. b3 {[%emt 0:00:05]} e6 {[%emt 0:04:18]} 5. Bg2 {[%emt 0:03:25]} Be7 {[%emt 0:00:10]} 6. O-O {[%emt 0:00:25]} O-O {[%emt 0:00:12]} 7. Bb2 {[%emt 0:00:10]} b6 {[%emt 0:01:52]} 8. d3 {[%emt 0:08:37]} Bb7 {[%emt 0:01:59]} 9. Nbd2 {[%emt 0:00:18]} c5 {[%emt 0:04:14]} 10. e3 {[%emt 0:06:11]} Nbd7 {[%emt 0:02:53]} 11. Qc2 {[%emt 0:09:11] The position is equal.} Qc7 {[%emt 0:01:47]} 12. Rad1 {[%emt 0:04:57]} Rac8 {[%emt 0:07:57]} 13. Qb1 {[%emt 0:00:47]} Qb8 {[%emt 0:06:27]} 14. Qa1 {[%emt 0:00:40]} Rfd8 {[%emt 0:02:22]} 15. cxd5 {[%emt 0:16:20]} Bxd5 {[%emt 0:02:25]} 16. e4 {[%emt 0:02:15]} Bb7 {[%emt 0:03:29]} 17. Nc4 {[%emt 0:00:26]} b5 {[%emt 0:06:43]} 18. Nce5 {[%emt 0:05:08]} Nxe5 {[%emt 0:05:27]} 19. Nxe5 {[%emt 0:00:22]} Qa8 {[%emt 0:07:15]} 20. f3 {[%emt 0:07:14]} a6 {[%emt 0:05:46]} 21. Kh1 {[%emt 0:11:28]} Bf8 {[%emt 0:02:02]} 22. Bc3 {[%emt 0:06:52]} Qb8 {[%emt 0:07:34]} 23. Rf2 {[%emt 0:06:42]} h5 {[%emt 0:05:30]} 24. g4 {[%emt 0:01:33]} hxg4 {[%emt 0:09:40]} 25. fxg4 {[%emt 0:00:17]} Rd4 {[%emt 0:00:35]} 26. Rxf6 {[%emt 0:05:40]} (26. g5 $5) 26... Qxe5 {[%emt 0:02:02]} 27. Rf3 {[%emt 0:00:21][%cal Od1f1]} Bd6 {[%emt 0:02:17]} 28. Rh3 {[%emt 0:00:07][%cal Od1f1] Prevents Qxh2+.} f5 {[%emt 0:02:27] This costs Black the game.} 29. gxf5 $18 {[%emt 0:00:25]} exf5 {[%emt 0:00:10]} 30. Rf1 {[%emt 0:00:56]} fxe4 {[%emt 0:03:00][%cal Ob7d5]} 31. Bxd4 {[%emt 0:00:35]} cxd4 {[%emt 0:00:01]} 32. Qe1 {[%emt 0:00:15] [#] Hoping for Qh4. The board is on fire.} Qg5 {[%emt 0:03:11]} (32... Qe7 $16 {was called for.}) 33. Bxe4 $40 {[%emt 0:00:35][%mdl 128] White is out for blood.} Qg4 {[%emt 0:01:33]} 34. Rh4 {[%emt 0:00:40][%cal Oe4b7,Bh3h4,Bh4e4,Be4d4,Bd4d7][%mdl 32] Threatening mate with Bxb7!} Bxe4+ {[%emt 0:00:39]} 35. Qxe4 {[%emt 0:00:29]} Qxe4+ {[%emt 0:00:02]} 36. Rxe4 {[%emt 0:00:02][%mdl 4096] Endgame. KRR-KRB} Rc2 {[%emt 0:00:16]} 37. Rxd4 {[%emt 0:01:03]} Bxh2 {[%emt 0:01:08]} 38. a4 {[%emt 0:00:32]} Bc7 {[%emt 0:00:49]} 39. axb5 {[%emt 0:00:18]} axb5 {[%emt 0:00:01]} 40. Rd7 {[%emt 0:00:25]} Rc3 {[%emt 0:00:48]} 41. Rf5 {[%emt 0:30:20]} b4 {[%emt 0:00:51]} (41... Kh7 $142 42. Rxb5 Kh6) 42. Rg5 {[%emt 0:00:00] Weighted Error Value: White=0.08 (flawless) /Black=0.37.  Mistake:       	---       	Black=3      Inaccurate:     	White=1     	Black=4      OK:         	White=12    	Black=12     Best:        	White=1     	---} 1-0

[Event "Sardinia World Festival-A 2024"]
[Site "Orosei"]
[Date "2024.04.27"]
[Round "1.8"]
[White "Deveci, Huseyin Said"]
[Black "Dardha, Daniel"]
[Result "0-1"]
[ECO "B33"]
[WhiteElo "2255"]
[BlackElo "2630"]
[Annotator "RC"]
[PlyCount "74"]
[EventDate "2024.04.26"]
[EventType "swiss"]
[EventCountry "ITA"]
[SourceTitle "playchess.com"]
[Source "ChessBase"]
[SourceQuality "1"]
[TimeControl "40/5400+30:1800+30"]

1. e4 {[%emt 0:00:03]} c5 {[%emt 0:00:18]} 2. Nf3 {[%emt 0:00:07]} Nc6 {[%emt 0:00:05]} 3. d4 {[%emt 0:00:06]} cxd4 {[%emt 0:00:04]} 4. Nxd4 {[%emt 0:00:06]} e5 {[%emt 0:00:10]} 5. Nb5 {[%emt 0:00:33]} d6 {[%emt 0:00:06]} 6. N1c3 {[%emt 0:00:28]} a6 {[%emt 0:00:22]} 7. Na3 {[%emt 0:00:15]} Be6 {[%emt 0:00:34]} 8. Nd5 {[%emt 0:04:40]} Nf6 {[%emt 0:01:04]} 9. Bg5 {[%emt 0:06:56]} Bxd5 {[%emt 0:00:12]} 10. exd5 {[%emt 0:08:50]} Ne7 {[%emt 0:02:51]} 11. Bxf6 {[%emt 0:12:58]} gxf6 {[%emt 0:00:12]} 12. Nc4 {[%emt 0:00:33]} b5 {[%emt 0:20:09]} 13. Ne3 {[%emt 0:00:41]} Bh6 {[%emt 0:01:08]} 14. Bd3 {[%emt 0:10:09]} Bxe3 {[%emt 0:05:04]} 15. fxe3 {[%emt 0:03:09]} f5 {[%emt 0:03:25]} 16. O-O {[%emt 0:04:36]} e4 {[%emt 0:04:02]} 17. Be2 {[%emt 0:01:52]} Qb6 {[%emt 0:00:12]} 18. Qd2 {[%emt 0:00:28]} Rg8 {[%emt 0:04:30]} 19. Kh1 {[%emt 0:12:02]} Rc8 {[%emt 0:03:48]} 20. b4 {[%emt 0:04:55]} Qc7 {[%emt 0:02:49]} 21. c4 {[%emt 0:02:03]} bxc4 {[%emt 0:00:07]} 22. Qd4 {[%emt 0:00:34]} Qb7 {[%emt 0:02:17]} 23. Bxc4 {[%emt 0:04:27]} Qxb4 {[%emt 0:02:22]} 24. Rfc1 {[%emt 0:00:57]} Kf8 {[%emt 0:03:20]} 25. Rab1 {[%emt 0:02:11]} Qa3 {[%emt 0:04:02]} 26. Rc3 {[%emt 0:10:32]} Qa5 {[%emt 0:17:54]} 27. Rb7 {[%emt 0:02:39]} Rg6 {[%emt 0:11:09]} 28. h3 {[%emt 0:04:57]} Ng8 {[%emt 0:01:46]} 29. Qa7 {[%emt 0:02:13]} Rf6 {[%emt 0:01:00]} 30. Qd4 {[%emt 0:00:31]} Qc5 {[%emt 0:00:59]} 31. Qd2 {[%emt 0:00:16]} f4 {[%emt 0:03:48]} 32. exf4 {[%emt 0:01:06]} e3 {[%emt 0:00:04]} 33. Qe2 {[%emt 0:00:29]} Rxf4 {[%emt 0:01:19]} 34. Qh5 {[%emt 0:00:33]} Qd4 {[%emt 0:01:47]} 35. Rbb3 {[%emt 0:00:27]} h6 {[%emt 0:02:25]} 36. a4 {[%emt 0:00:34]} Rxc4 {[%emt 0:00:28]} 37. Rb8+ {[%emt 0:00:29]} Kg7 {[%emt 0:00:13]} 0-1

[Event "Sardinia World Festival-A 2024"]
[Site "Orosei"]
[Date "2024.04.27"]
[Round "1.9"]
[White "Chigaev, Maksim"]
[Black "Krivenko, Dion"]
[Result "1-0"]
[ECO "B40"]
[WhiteElo "2621"]
[BlackElo "2254"]
[Annotator "TA"]
[PlyCount "97"]
[EventDate "2024.04.26"]
[EventType "swiss"]
[EventCountry "ITA"]
[SourceTitle "playchess.com"]
[Source "ChessBase"]
[SourceQuality "1"]
[TimeControl "40/5400+30:1800+30"]

{[%evp 9,97,13,8,6,21,12,18,0,18,18,25,16,12,17,31,25,41,15,27,23,54,0,11,0,0,-40,-21,-66,0,0,0,7,0,0,43,35,43,0,0,0,42,43,43,45,141,133,172,172,156,166,168,168,164,166,204,166,172,160,146,127,115,108,248,264,1055,1312,1073,1056,5051,2879,3807,2324,4133,3732,2211,2114,2506,1320,29970,29972,29979,29978,29980,29981,29983,29984,29985,29986,29991,29992]} 1. e4 {[%emt 0:00:10]} c5 {[%emt 0:00:08]} 2. Nf3 {[%emt 0:00:08]} e6 {[%emt 0:00:06]} 3. d4 {[%emt 0:02:15]} cxd4 {[%emt 0:00:08]} 4. Nxd4 {[%emt 0:00:06]} Nf6 {[%emt 0:00:06]} 5. Nd2 {[%emt 0:00:31]} d6 {[%emt 0:05:43]} 6. Bd3 {[%emt 0:00:29]} Nc6 {[%emt 0:02:15]} 7. Nxc6 {[%emt 0:02:12]} bxc6 {[%emt 0:00:08]} 8. b3 {[%emt 0:02:29] The position is equal.} e5 {[%emt 0:01:59]} 9. Bb2 {[%emt 0:01:05]} Be7 {[%emt 0:02:24]} 10. Qe2 {[%emt 0:00:14]} Nd7 {[%emt 0:06:35]} 11. O-O-O {[%emt 0:06:01]} a5 {[%emt 0:00:38]} 12. a4 {[%emt 0:00:22]} O-O {[%emt 0:01:30]} 13. g3 {[%emt 0:00:13]} Nc5 {[%emt 0:05:13]} 14. f4 {[%emt 0:03:10]} Qc7 {[%emt 0:10:37]} 15. h4 {[%emt 0:26:13]} Rb8 {[%emt 0:09:39]} 16. fxe5 {[%emt 0:12:37]} dxe5 {[%emt 0:01:13]} 17. Nc4 {[%emt 0:00:09]} f6 {[%emt 0:02:23]} 18. Ne3 {[%emt 0:00:29]} Nxd3+ {[%emt 0:03:03]} ({Black should try} 18... Kh8 $15) 19. Qxd3 $11 {[%emt 0:00:10]} Be6 {[%emt 0:00:26]} 20. g4 {[%emt 0:01:59]} Rfd8 {[%emt 0:04:33]} 21. Qe2 {[%emt 0:00:43]} Rxd1+ {[%emt 0:03:00]} 22. Rxd1 {[%emt 0:00:14]} Rd8 {[%emt 0:01:09][%cal Bb8d8,Bd8d1,Bd1h1][%mdl 32]} 23. Rg1 {[%emt 0:15:56][%cal Bd1g1,Bg1g3,Bg3e3][%mdl 32]} Bc5 {[%emt 0:13:59]} 24. g5 {[%emt 0:03:05]} Qa7 {[%emt 0:03:25]} 25. Rg3 {[%emt 0:01:54]} Bxe3+ {[%emt 0:07:25]} 26. Qxe3 {[%emt 0:00:11]} (26. Rxe3 Bg4 27. Qxg4 (27. Qc4+ $2 Kh8 $19) 27... Qxe3+ 28. Kb1 Qf4 29. Qe6+ Kh8 30. Qxc6 fxg5 $17 (30... Qxh4 31. gxf6 gxf6 32. Bc3 $15)) 26... Bg4 {[%emt 0:02:15]} 27. Bc3 $16 {[%emt 0:00:37][%cal Bb2c3,Bc3a5,Ba5d8][%mdl 32]} Rd1+ {[%emt 0:01:47]} 28. Kb2 {[%emt 0:00:02]} Qxe3 {[%emt 0:00:06]} 29. Rxe3 $18 {[%emt 0:00:12][%mdl 4096] Endgame. KRB-KRB} Rh1 {[%emt 0:00:03]} 30. Bxa5 {[%emt 0:01:57]} Rxh4 {[%emt 0:00:12]} 31. gxf6 {[%emt 0:00:45]} gxf6 {[%emt 0:00:11]} 32. Bd8 {[%emt 0:06:17][%cal Oa4a5]} Kf7 {[%emt 0:05:39]} 33. a5 {[%emt 0:00:16] And now a6 would win.} Bc8 {[%emt 0:01:47]} 34. Rc3 {[%emt 0:00:11]} Bb7 {[%emt 0:03:45]} 35. Rc4 {[%emt 0:00:09]} c5 {[%emt 0:02:34] Against Rb4. This costs Black the game.} 36. Rxc5 {[%emt 0:00:16] Threatens to win with Rc7+.} Bxe4 $2 {[%emt 0:00:10]} (36... Ke6 37. b4 Rxe4) 37. Rc4 {[%emt 0:04:13]} Rg4 {[%emt 0:01:40] [#]} 38. Rxe4 $1 {[%emt 0:00:18][%mdl 512]} Rxe4 {[%emt 0:00:03] KR-KB} (38... Rg8 39. Bb6) 39. a6 {[%emt 0:00:06]} Rd4 {[%emt 0:01:03] [#]} 40. Bc7 $1 {[%emt 0:00:07] Strongly threatening a7.} Rd7 {[%emt 0:00:39]} 41. a7 {[%emt 0:30:10]} Rxc7 {[%emt 0:30:05]} 42. a8=Q {[%emt 0:00:06] b4 would kill now. KQ-KR} (42. a8=B $2 {too greedy.} Ke6 43. Kc1 f5 $19) 42... Re7 {[%emt 0:00:12]} 43. Qe4 {[%emt 0:00:28][%cal Ob3b4] White threatens b4! and mate.} Ke6 {[%emt 0:01:07]} 44. b4 {[%emt 0:00:12][%cal Bb3b4,Bb4b5,Bb5b6,Bb6b7][%mdl 32] White mates.} f5 {[%emt 0:00:08]} 45. Qc6+ {[%emt 0:00:06]} Kf7 {[%emt 0:00:05]} 46. b5 {[%emt 0:00:14]} e4 {[%emt 0:00:06][%cal Be5e4,Be4e3,Be3e2][%mdl 32]} 47. b6 {[%emt 0:00:06]} e3 {[%emt 0:00:05]} 48. b7 {[%emt 0:00:10]} e2 {[%emt 0:00:04]} 49. Qd5+ {[%emt 0:00:23] Weighted Error Value: White=0.09 (flawless) /Black=0.36.  Mistake:       	---       	Black=4      Inaccurate:     	White=5     	Black=3      OK:         	White=10    	Black=10     Best:        	White=3     	---} ({Weaker is} 49. b8=R e1=Q (49... e1=B 50. Qh6 Re6 51. Rb7+ Re7 52. Qxh7+ Ke6 53. Qxe7+ Kd5 54. Rb5+ Kc6 55. Qb7+ Kd6 56. Qa6+ Ke7 57. Rb7+ Kf8 58. Qa8#) 50. Rb5 Qe4 $17) 1-0

[Event "Sardinia World Festival-A 2024"]
[Site "Orosei"]
[Date "2024.04.27"]
[Round "1.10"]
[White "Lever, Erwan"]
[Black "Moussard, Jules"]
[Result "0-1"]
[ECO "D02"]
[WhiteElo "2254"]
[BlackElo "2610"]
[Annotator "TA"]
[PlyCount "48"]
[EventDate "2024.04.26"]
[EventType "swiss"]
[EventCountry "ITA"]
[SourceTitle "playchess.com"]
[Source "ChessBase"]
[SourceQuality "1"]
[TimeControl "40/5400+30:1800+30"]

{[%evp 9,48,6,20,31,30,23,16,29,18,25,22,14,26,21,7,22,8,-22,-46,-333,-333,-342,-332,-322,-218,-238,-228,-231,-222,-236,-203,-210,-203,-220,-216,-311,-305,-321,-284,-433,-427]} 1. d4 {[%emt 0:00:02]} d5 {[%emt 0:00:06]} 2. Nf3 {[%emt 0:00:09]} Nf6 {[%emt 0:00:06]} 3. g3 {[%emt 0:00:07]} c5 {[%emt 0:00:05]} 4. Bg2 {[%emt 0:00:09]} cxd4 {[%emt 0:00:05]} 5. O-O {[%emt 0:00:12]} h6 {[%emt 0:00:31]} 6. b3 {[%emt 0:00:12]} e6 {[%emt 0:00:20][%cal Be7e6,Be6e5,Be5e4][%mdl 32]} 7. Bb2 {[%emt 0:00:35]} Bc5 {[%emt 0:00:08]} 8. Nxd4 {[%emt 0:14:37] The position is equal.} O-O {[%emt 0:00:46]} 9. c4 {[%emt 0:01:06]} e5 {[%emt 0:00:26]} 10. Nf3 {[%emt 0:01:22]} e4 {[%emt 0:01:03]} 11. Nd4 {[%emt 0:00:26]} Re8 {[%emt 0:00:25]} 12. cxd5 {[%emt 0:01:13]} (12. Nc2 {simplifies} dxc4 13. Qxd8 Rxd8 14. bxc4 Nc6 15. Bxf6 gxf6 16. Bxe4 f5 17. Bxc6 bxc6 18. Nc3) 12... Qxd5 {[%emt 0:00:54]} 13. Nb5 {[%emt 0:03:19] [#] And now Nc7 would win.} Bxf2+ $1 {[%emt 0:04:03]} 14. Kh1 $2 {[%emt 0:00:10][%mdl 8192] Loses the game.} ({Only move:} 14. Kxf2 $15 Qxb5 15. Bxf6 gxf6 16. Qd6) 14... Qh5 $19 {[%emt 0:07:51]} 15. Rxf2 {[%emt 0:07:35]} Ng4 {[%emt 0:00:04]} (15... Qxb5 $2 {loses.} 16. Rxf6 (16. Bxf6 gxf6 17. Nc3 Qe5 $11) 16... gxf6 17. Nc3 $18) 16. Qg1 {[%emt 0:00:11][%cal Ob1c3] N1c3! is the strong threat.} Nxf2+ {[%emt 0:04:36]} ({Weaker is} 16... Qxb5 17. Rf4 $17) 17. Qxf2 {[%emt 0:00:07]} Qxb5 {[%emt 0:00:53]} 18. Nc3 {[%emt 0:04:24]} Qf5 {[%emt 0:01:41]} 19. Qe3 {[%emt 0:01:27]} Nc6 {[%emt 0:01:00]} 20. Nxe4 {[%emt 0:02:09][%cal Oe4f6] Threatens to win with Nf6+!} Re7 {[%emt 0:11:06]} 21. Rf1 {[%emt 0:02:37]} Qg6 {[%emt 0:05:46]} 22. Qf4 {[%emt 0:09:21] Wards off Bf5} (22. Ba3 $142 Re6 23. Qd3) 22... Bg4 {[%emt 0:02:43]} 23. e3 {[%emt 0:10:33]} Rd8 {[%emt 0:02:00]} 24. h3 {[%emt 0:01:04] [#]} (24. Bc3 {was worth a try.}) 24... Bxh3 $1 {[%emt 0:01:53][%mdl 512] Weighted Error Value: White=0.39/Black=0.14 (very precise) .  Loses game:     	White=1     	---        Mistake:       	White=2     	---        Inaccurate:     	White=1     	---        OK:         	White=10    	Black=10     Best:        	---       	Black=2      Strong:       	---       	Black=1} 0-1

[Event "Sardinia World Festival-A 2024"]
[Site "Orosei"]
[Date "2024.04.27"]
[Round "1.11"]
[White "Huschenbeth, Niclas"]
[Black "Balabayeva, Xeniya"]
[Result "1-0"]
[ECO "B12"]
[WhiteElo "2607"]
[BlackElo "2248"]
[Annotator "TA"]
[PlyCount "63"]
[EventDate "2024.04.26"]
[EventType "swiss"]
[EventCountry "ITA"]
[SourceTitle "playchess.com"]
[Source "ChessBase"]
[SourceQuality "1"]
[TimeControl "40/5400+30:1800+30"]

{[%evp 10,63,37,17,33,35,37,16,33,39,57,19,33,31,26,29,60,60,72,64,76,67,79,74,87,81,108,81,86,81,85,93,92,64,81,59,178,174,139,147,154,123,140,110,110,81,158,166,148,143,246,257,240,224,346,347]} 1. e4 {[%emt 0:00:03]} c6 {[%emt 0:00:05]} 2. d4 {[%emt 0:00:10]} d5 {[%emt 0:00:04]} 3. e5 {[%emt 0:00:06]} Bf5 {[%emt 0:00:05]} 4. Nf3 {[%emt 0:00:06]} e6 {[%emt 0:00:07]} 5. Be2 {[%emt 0:00:07]} Nd7 {[%emt 0:00:07]} 6. O-O {[%emt 0:00:15]} Bb4 {[%emt 0:00:28][%cal Bf8b4,Bb4a5,Ba5c7][%mdl 32]} 7. c3 {[%emt 0:07:05]} Ba5 {[%emt 0:00:05]} 8. Qb3 {[%emt 0:01:40]} Rb8 {[%emt 0:01:00] The position is equal.} 9. Bg5 {[%emt 0:02:50][%cal Bc1g5,Bg5h4,Bh4g3][%mdl 32]} f6 {[%emt 0:11:09]} 10. Bh4 {[%emt 0:11:16]} Bc7 {[%emt 0:03:42]} 11. Nbd2 {[%emt 0:14:05]} Ne7 {[%emt 0:04:43]} 12. exf6 {[%emt 0:01:15]} gxf6 {[%emt 0:04:12]} 13. Bg3 {[%emt 0:09:10]} O-O {[%emt 0:09:56]} 14. Nh4 {[%emt 0:03:35]} Kh8 {[%emt 0:18:09]} 15. c4 {[%emt 0:07:08]} Bxg3 {[%emt 0:10:49]} 16. hxg3 {[%emt 0:08:51]} Rg8 {[%emt 0:10:05]} 17. Rfe1 {[%emt 0:02:06]} Qf8 {[%emt 0:02:41]} 18. cxd5 {[%emt 0:05:01]} Nxd5 {[%emt 0:01:52]} 19. Nxf5 {[%emt 0:01:17]} exf5 {[%emt 0:00:02]} 20. Bf3 {[%emt 0:06:07]} N7b6 {[%emt 0:00:51]} 21. Qd3 {[%emt 0:00:11]} Rg5 {[%emt 0:03:20]} 22. Nb3 {[%emt 0:04:51]} Qd6 {[%emt 0:08:21]} (22... f4 $14) 23. Nc5 $18 {[%emt 0:01:51]} Nc7 {[%emt 0:01:39]} 24. Re2 {[%emt 0:00:53]} Nd7 {[%emt 0:05:12]} 25. Qc4 {[%emt 0:06:01] White has more active pieces.} Nb6 {[%emt 0:01:08]} 26. Qc2 {[%emt 0:00:58]} Nb5 {[%emt 0:00:58]} 27. Re6 {[%emt 0:03:40][%cal Be2e6,Be6d6,Bd6d7,Bd7d2][%mdl 32]} Nxd4 {[%emt 0:01:42]} (27... Qd8 $142) 28. Rxd6 $16 {[%emt 0:00:15]} Nxc2 {[%emt 0:00:05] A dynamic duo of knights.} 29. Rad1 $36 {[%emt 0:00:26][%cal Oa2a3][%mdl 2048] White is in control.} Rg6 {[%emt 0:01:22]} (29... Nb4 $16 30. Rxf6 Kg8) 30. a3 $18 {[%emt 0:01:45][%mdl 1024] White has strong compensation.} Nc4 {[%emt 0:00:27]} 31. Rd7 {[%emt 0:00:36]} Ne5 {[%emt 0:00:50] [#]} (31... b6 {was necessary.}) 32. R7d2 $1 {[%emt 0:00:42] Weighted Error Value: White=0.10 (very precise) /Black=0.26 (precise) .  Mistake:       	---       	Black=4      Inaccurate:     	White=2     	Black=2      OK:         	White=11    	Black=9      Best:        	White=1     	Black=1      Strong:       	White=1     	---} ({Less strong is} 32. Rxb7 Rxb7 33. Nxb7 Nxf3+ 34. gxf3 f4 $16) 1-0